Cogmind - Beta 15 @@@ ROGUE MODE // 2025.08.10 @ 23:04:12 Player: WitherScout Result: Destroyed by Y-45 Defender with Heavy Assault Rifle Performance ------------- Evolutions (1) 500 Regions Visited (2) 400 Robots Destroyed (2) 10 Value Destroyed (80) 80 Prototype IDs (0) 0 Alien Tech Used (0) 0 Bonus (200) 200 TOTAL SCORE: 1190 Bonus ------- Pacifist 200 Cogmind --------- Core Integrity 0/400 Matter 260/300 Energy 99/100 System Corruption 0% Temperature Cool (27) Movement Core (50) Location -9/Materials Parts ------- > --- POWER (1) -------- (None) > --- PROPULSION (4) --- (None) > --- UTILITY (2) ------ (None) > --- WEAPON (2) ------- (None) > --- INVENTORY (5) ---- Compact Wheel Hover Unit Hover Unit Hover Unit Small Storage Unit Peak State ------------ > --- POWER ------------ Ion Engine > --- PROPULSION ------- VTOL Module VTOL Module VTOL Module > --- UTILITY ---------- Small Storage Unit > --- WEAPON ----------- (None) > --- INVENTORY -------- Light Ion Engine Compact Wheel High-capacity Storage Unit [Rating: 8] Favorites ----------- Power Ion Engine Engine Ion Engine Propulsion Compact Wheel Wheel Compact Wheel Hover Unit Hover Unit Flight Unit VTOL Module Utility High-capacity Storage Unit Storage High-capacity Storage Unit Weapon EM Pulse Gun Energy Gun EM Pulse Gun Ballistic Gun Light Assault Rifle Launcher Grenade Launcher Build | -11 -10 -9 ------- Run | Yrd Mat Mat Slots Evolved 2 | . . 2 Power . | . . . Propulsion 2 | . . 2 Utility . | . . . Weapon . | . . . Parts Attached 19 | 7 2 10 Power 3 | 1 . 2 Engine 3 | 1 . 2 Core . | . . . Reactor . | . . . Propulsion 9 | 2 . 7 Treads . | . . . Leg . | . . . Wheel 2 | 2 . . Hover 4 | . . 4 Flight 3 | . . 3 Utility 3 | 1 1 1 Device . | . . . Storage 3 | 1 1 1 Processor . | . . . Hackware . | . . . Protection . | . . . Artifact . | . . . Weapon 4 | 3 1 . Energy Gun 2 | 2 . . Energy Cannon . | . . . Ballistic Gun 1 | 1 . . Ballistic Cannon . | . . . Launcher 1 | . 1 . Special Weapon . | . . . Impact Weapon . | . . . Slashing Weapon . | . . . Piercing Weapon . | . . . Special Melee Weapon . | . . . Unidentified Prototypes . | . . . Parts Lost 10 | . 1 9 Power 3 | . . 3 Propulsion 5 | . 1 4 Utility . | . . . Weapon 2 | . . 2 Highest Loss Streak 4 | . 1 4 To Critical Strikes . | . . . Average Backups 2 | . 1 3 Power 1 | . 1 1 Propulsion . | . . 1 Utility . | . . . Weapon . | . . . Tool/Special . | . . . Unused Backups . | . . . Power . | . . . Propulsion . | . . . Utility . | . . . Weapon . | . . . Tool/Special . | . . . Average Slot Usage (%) 60 | . 85 34 Engine 10 | . 14 7 Wheel 16 | . 28 3 Hover 2 | . . 5 Flight 3 | . . 6 Storage 9 | . 14 3 Energy Gun 8 | . 14 3 Ballistic Gun 2 | . 4 . Launcher 6 | . 9 3 Peak Build Rating 8 | 6 7 8 Average Rating 4 | 4 6 3 On Entrance 3 | . 6 5 Naked Turns 45 | . . 45 Heaviest Build 50 | 13 50 50 Greatest Support 32 | 32 32 24 Greatest Overweight (x) 3 | 3 1 3 Average Overweight (x) . | . . . Largest Inventory Capacity 20 | 8 20 20 Average Capacity 12 | 7 16 9 Most Carried 5 | 1 2 5 Average Carried 2 | . 1 3 Final Capacity 20 | 8 20 5 Final Carried 5 | 1 2 5 Class Distribution -------------------- 100% | Mutant Dominant Class ---------------- Mutant | -10/Materials Mutant | -9/Materials Resources | -11 -10 -9 ----------- Run | Yrd Mat Mat Matter Collected 367 | 182 140 45 Remotely . | . . . Salvage Created 75 | . . 75 Parts 2 | . . 2 Haulers Intercepted . | . . . Recyclers Shooed . | . . . Parts Field Recycled . | . . . Retrieved Matter . | . . . Parts Self-Destructed . | . . . Prevented . | . . . Kills | -11 -10 -9 ------- Run | Yrd Mat Mat Combat Hostiles Destroyed 2 | . . 2 AOE 2 | . . 2 Classes Destroyed 2 | . . 2 Grunt 1 | . . 1 Brawler 1 | . . 1 Best Kill Streak 2 | . . 2 Combat Bots Only 2 | . . 2 Max Kills in Single Turn 2 | . . 2 Gunslinging . | . . . Exploded 2 | . . 2 Melee . | . . . Uniques/NPCs Destroyed . | . . . Combat | -11 -10 -9 -------- Run | Yrd Mat Mat Hostile Shots Fired 99 | . 17 82 Missed 35 | . 7 28 Hits 64 | . 10 54 Melee 1 | . . 1 Projectile 63 | . 10 53 Critical Strikes 2 | . . 2 Damage Taken 899 | . 174 725 Core 430 | . 19 411 Absorbed by Shields . | . . . Core Remaining (%) 96 | 100 92 . Volleys Fired 7 | . 6 1 Largest 2 | . 2 2 Hottest 70 | . 70 70 Shots Fired 13 | . 11 2 Gun 9 | . 8 1 Cannon . | . . . Launcher 4 | . 3 1 Special . | . . . Kinetic 2 | . 2 . Thermal . | . . . Explosive 4 | . 3 1 Electromagnetic 7 | . 6 1 Robot Hit Streak 3 | . 3 2 Robot Miss Streak 1 | . 1 . Penetration Max . | . . . Secondary Targets . | . . . Shots Hit Robots 7 | . 5 2 Core Hits 8 | . 5 3 Critical Kills . | . . . Critical Parts Destroyed . | . . . Critical Strikes . | . . . Melee Attacks . | . . . Impact . | . . . Slashing . | . . . Piercing . | . . . Sneak Attacks . | . . . Combat Hostiles . | . . . Follow-up Attacks . | . . . Damage Inflicted 341 | . 202 139 Guns 54 | . 41 13 Cannons . | . . . Explosions 265 | . 139 126 Melee . | . . . Ramming 22 | . 22 . Kinetic 14 | . 14 . Thermal . | . . . Explosive 265 | . 139 126 Electromagnetic 40 | . 27 13 Impact . | . . . Slashing . | . . . Piercing . | . . . Highest Corruption . | . . . Average Corruption . | . . . Corruption Purged . | . . . Corruption Blocked . | . . . Overload Shots . | . . . Overflow Damage . | . . . Projectiles . | . . . Explosions . | . . . Melee . | . . . Knockbacks . | . . . Impact . | . . . Kinetic . | . . . Secondary . | . . . Self-Inflicted Damage 11 | . 11 . Shots . | . . . Rammed 1 | . 1 . Targets Rammed 1 | . 1 . Kicked . | . . . Crushed . | . . . Highest Temperature 70 | . 70 15 Average Temperature 26 | . 30 9 Received Heat Transfer 396 | . 99 297 Siege Activations . | . . . Martial Activations . | . . . Shielding Activations . | . . . Robots Disrupted . | . . . Combat Hostiles . | . . . Robots Corrupted . | . . . Combat Hostiles . | . . . Parts Fried . | . . . Impact Corruptions . | . . . Robots Melted . | . . . Combat Hostiles . | . . . Parts Melted . | . . . Heat Transferred . | . . . Parts Sabotaged . | . . . Parts Stolen . | . . . Parts Stripped . | . . . Power Chain Reactions . | . . . Alert | -11 -10 -9 ------- Run | Yrd Mat Mat Maximum Alert Level . | . . . Low Security (%) 100 | 100 100 100 Level 1 . | . . . Level 2 . | . . . Level 3 . | . . . Level 4 . | . . . Level 5 . | . . . High Security . | . . . Max Security . | . . . Peak Influence 61 | . 15 61 Initial . | . . . Average 3 | . 2 7 Influence Increases 86 | . 18 68 Destroy 0b10 Robot/C 40 | . . 40 Destroy Leader 10 | . . 10 Successful Hack 7 | . . 7 Disable Machine 15 | . 15 . Destroy Structure 14 | . 3 11 Influence Decreases 86 | . 18 68 Time Decay 45 | . 18 27 Lost Part 41 | . . 41 Squads Dispatched 3 | . 2 1 Investigation 1 | . 1 . Extermination . | . . . Reinforcement 2 | . 1 1 Assault . | . . . Garrison . | . . . Intercept . | . . . Searches Triggered . | . . . Construction Impeded . | . . . Haulers Reinforced . | . . . Active Scanning Responses . | . . . Cargo Convoy Interrupts . | . . . Stealth | -11 -10 -9 --------- Run | Yrd Mat Mat Distress Signals 4 | . 2 2 Communications Jammed . | . . . Distress Signals . | . . . Times Spotted 23 | . 10 13 Peak Tracking Total 17 | . 4 17 Tactical Retreats . | . . . Traps | -11 -10 -9 ------- Run | Yrd Mat Mat Traps Triggered 1 | . 1 . Indirectly . | . . . Trap Hack Attempts . | . . . Triggered . | . . . Disarmed . | . . . Reprogrammed . | . . . Reused . | . . . Traps Extracted . | . . . Installed . | . . . Triggered . | . . . Machines | -11 -10 -9 ---------- Run | Yrd Mat Mat Machines Disabled 1 | . 1 . Max in Single Turn 1 | . 1 . Machines Repaired . | . . . Machines Dismantled . | . . . Machines Sabotaged . | . . . Overloaded Fab Kills . | . . . Hacking | -11 -10 -9 --------- Run | Yrd Mat Mat Machines Accessed 1 | . . 1 Terminals 1 | . . 1 Fabricators . | . . . Repair Stations . | . . . Recycling Units . | . . . Scanalyzers . | . . . Garrison Access . | . . . Total Hacks 2 | . . 2 Successful 1 | . . 1 Failed 1 | . . 1 Catastrophic . | . . . Database Lockouts . | . . . Manual . | . . . Terminals 2 | . . 2 Fabricators . | . . . Repair Stations . | . . . Recycling Units . | . . . Scanalyzers . | . . . Garrison Access . | . . . Terminal Hacks 1 | . . 1 Patrol Status 1 | . . 1 Fabricator Hacks . | . . . Repair Station Hacks . | . . . Recycling Unit Hacks . | . . . Scanalyzer . | . . . Garrison Access Hacks . | . . . Unauthorized Hacks . | . . . Terminals . | . . . Fabricators . | . . . Repair Stations . | . . . Recycling Units . | . . . Scanalyzers . | . . . Garrison Access . | . . . Data Cores Recovered . | . . . Used . | . . . Hacking Detections . | . . . Full Trace Events . | . . . Feedback Events . | . . . Feedback Blocked . | . . . Robot Schematics Acquired . | . . . Robots Built . | . . . Authchips . | . . . Time . | . . . Total Robot Build Rating . | . . . Part Schematics Acquired . | . . . Parts Built . | . . . Authchips . | . . . Time . | . . . Total Part Build Rating . | . . . Parts Repaired . | . . . Time . | . . . Parts Recycled . | . . . Recycled Matter . | . . . Retrieved Matter . | . . . Retrieved Components . | . . . Parts Scanalyzed . | . . . Part Schematics Acquired . | . . . Parts Damaged . | . . . Bothacking | -11 -10 -9 ------------ Run | Yrd Mat Mat Used RIF Installer . | . . . Robots Hacked . | . . . Non-combat . | . . . Combat . | . . . Robot Hacks Applied . | . . . Relay Couplers Released . | . . . Fabnet Peak Effective % . | . . . Robots Rewired . | . . . Allies Hacked . | . . . Hacks Repelled . | . . . Allies | -11 -10 -9 -------- Run | Yrd Mat Mat Total Allies . | . . . Largest Group . | . . . Highest-Rated Group . | . . . Highest-Rated Ally . | . . . Total Orders . | . . . Ally Attacks . | . . . Total Damage . | . . . Kills . | . . . Allies Corrupted . | . . . Allies Melted . | . . . Intel | -11 -10 -9 ------- Run | Yrd Mat Mat Active Infowar (turns) . | . . . Robot Analysis Total . | . . . Derelict Logs Recovered . | . . . Drone Launches . | . . . Drone Recoveries . | . . . Exploration | -11 -10 -9 ------------- Run | Yrd Mat Mat Turns Passed 395 | 62 171 162 Spaces Moved 431 | 44 130 257 Core 102 | 9 . 93 Treads . | . . . Legs . | . . . Wheels 193 | 35 130 28 Hover 38 | . . 38 Flight 98 | . . 98 Fastest Speed 29 | 50 100 29 Average Speed 77 | 114 110 54 Slowest Speed 200 | 200 115 145 Overloaded Moves . | . . . Propulsion Burnouts . | . . . Robots Hopped 2 | . . 2 Potential Cave-ins . | . . . Cave-ins Triggered . | . . . Exploration Rate (%) 16 | 3 24 21 Regions Visited 2 Branch Regions . Pre-discovered Areas . | . . . Known Exits Taken . | . . . Unknown Exits Taken 2 | 1 1 . Scrap Searched . | . . . Spaces Dug . | . . . Terrain Destroyed 13 | . 2 11 Melee . | . . . Projectile . | . . . AOE 13 | . 2 11 Terrain Rammed . | . . . Walls Destroyed . | . . . Machines Disabled . | . . . Actions | -11 -10 -9 --------- Run | Yrd Mat Mat Total 473 | 52 146 275 Wait 5 | . 5 . Move 426 | 43 130 253 Hop 2 | . . 2 Pick Up 2 | 1 1 . Fast Attach 17 | 7 2 8 Attach 3 | . . 3 Detach 7 | . . 7 Swap . | . . . Drop 4 | 1 2 1 Fire 7 | . 6 1 Melee . | . . . Ram . | . . . Kick . | . . . Crush . | . . . Escape Stasis . | . . . Rewire . | . . . Trap . | . . . Miscellaneous . | . . . Route ------- -11/Scrapyard -10/Materials -9/Materials History --------- Turn | Location | Event 33 | -11/Scrapyard | Discovered new exit (range 15) 63 | -11/Scrapyard | Entered Materials 64 | -10/Materials | Met a group of wandering Federalists 220 | -10/Materials | Discovered new exit (range 14) 234 | -10/Materials | Entered another Materials area 234 | -9/Materials | Evolved 2 slots: Propulsion x2 309 | -9/Materials | Lost 3 parts (1p2w) 360 | -9/Materials | Lost 4 parts (1p3n) 370 | -9/Materials | Core integrity fell below 50% 385 | -9/Materials | Core integrity fell below 20% 387 | -9/Materials | Build established: Mutant 396 | -9/Materials | Destroyed by Y-45 Defender with Heavy Assault Rifle Last Messages --------------- Acquired VTOL Module. R-06 Scavenger collects Ion Engine. Acquired VTOL Module. Acquired 36 matter. Acquired 4 matter. Acquired VTOL Module. Acquired Sml. Storage Unit. VTOL Module destroyed. Acquired 5 matter. Ion Engine destroyed. Acquired Hover Unit. Lgt. Ion Engine destroyed. Critical hit (Burn: +37). Hover Unit destroyed. Dropped Hcp. Storage Unit. Y-45 Defender suffers critical hit (Burn). ALERT: Hostiles spotted, dispatching reinforcements to Terminal M004. W-16 Scout sends out distress signal. Critical hit (Burn: +37). Map ----- +----------------------------------------------------+ | ## #??????????????????????????????????????????? | | #??????????????????????????????????????????? | | ## #??????????????????????????????????????????? | | ?# #??????????????????????????????????????????? | | ?######??????????????????????????????????????????? | | ?????????????????????????????????????????????????? | | ?????????????????????????????????????????????????? | | ?????????????????????????????????????????????????? | | ?????????????????????????????????????????????????? | | ?????????????????????????????????????????????????? | | ?????????????????????????????????????????????????? | | ?????????????????????????????????????????????????? | | ?????????????????????????????????????????????????? | | ?????????????????????????????????????????????????? | | ?????????????????????????????????????????????????? | | ???????????##########????????????????????????????? | | ???????????#!! #????????????????????????????? | | ???????????#!! #????????????????????????????? | | ???????????# """#????????????????????????????? | | ???????????# """#????????????????????????????? | | ???????????# """#???????????#????????????????? | | ????????????? #?????????a #????????????????? | | ??????????????? ????????? ##???????????????? | | ??????????#######+########## #???????????????? | | ??????????# t kr #???????????????? | | ########### @ Y #???????????????? | | lr #???????????????? | | ############## #???????????????? | | #??????????????#####???????????????? | | ########### #??????????????????????????????????? | | ??????????# ????????????????????????????????? | | ??????????# ??????????????????????????????? | | ??????????# ?????????????????????????????? | | ??????????# #######????????????????????????????? | | ??????????+ #??????????????????????????????????? | | ??????????# #??????????????????????????????????? | | ??????????# #??????????????????????????????????? | | ??????????# #??????????????????????????????????? | | ??????????# ??????????????????????????????????? | | ??????????? ??????????????????????????????????? | | ??????????? ??????????????????????????????????? | | ???????????###+??????????????????????????????????? | | ?????????????????????????????????????????????????? | | ?????????????????????????????????????????????????? | | ?????????????????????????????????????????????????? | | ?????????????????????????????????????????????????? | | ?????????????????????????????????????????????????? | | ?????????????????????????????????????????????????? | | ?????????????????????????????????????????????????? | | ?????????????????????????????????????????????????? | +----------------------------------------------------+ Best States ------------- Heat Dissipation 28 Energy Generation 10 Energy Capacity 250 Matter Stores 300 Matter Capacity 300 Sight Range 16 Terrain Scan Density 10 Evasion (%) 64 Item Schematics ----------------- None Robot Schematics ------------------ None Fabricated ------------ Nothing Repaired ---------- Nothing Alien Tech Used ----------------- None Achievements -------------- None Challenges ------------ None Game ------ Seed WeaponMobileFlail Manual? 0 Play Time 00:11:20 Cumulative 2.7 hours Start 2025.08.10 @ 22:54:12 End 2025.08.10 @ 23:04:12 Sessions 1 Manual Loads 0 Difficulty Rogue Special Mode None Game No. 6 Rogue 6 Adventurer 0 Explorer 0 Win Type - Total 0 Types 0/0/0/0/0/0/0/0/0/0 Lore% 0 Gallery% 7 Achievement% 9 Wizard Run 0 Options --------- Layout 1 ASCII 1 Keyboard 0 Movement Numpad Keybinds 0 Fullscreen 1 Font 24/Cog Map View 50x35 Zoom Use 0% Tactical HUD 0 Map Filters NONE Filters NONE Steam 0 RUN: 1bcf84f9-8b70-41d6-82a5-1516e90c217e